lending/lending_fUSD_20250224
["ID","MTS","AMOUNT","RATE_DAILY","PERIOD"]
[354325576,1740412240258,-827.77081,0.0002522,2]
[354325579,1740412240270,-280.0,0.000253,10]
[354325582,1740412240280,-1972.0,0.00025341,2]
[354325585,1740412240291,-207.45,0.00025393,120]
[354325588,1740412240301,-1972.0,0.00025602,2]
[354325591,1740412240311,-179.52,0.00025641,2]
[354325594,1740412240322,-796.27,0.00025768,2]
[354325597,1740412240331,-1972.0,0.00025863,2]
[354325600,1740412240345,-4320.69778859,0.00026,2]
[354325604,1740412240355,-1972.0,0.00026125,2]
[354325608,1740412240364,-547.91202843,0.00026125,2]
[354325611,1740412240374,-7500.0,0.000263,3]
[354325614,1740412240384,-4486.57059395,0.00026323,2]
[354325617,1740412240393,-1972.0,0.00026386,2]
[354325620,1740412240403,-26234.82884074,0.000264,2]
[354325623,1740412240413,-939.22,0.00026493,2]
[354325626,1740412240423,-179.53,0.00026591,2]
[354325629,1740412240433,-1972.0,0.00026647,2]
[354325631,1740412240443,-150.0,0.00026712,2]
[354325633,1740412240453,-150.0,0.00026712,2]
[354325635,1740412240463,-1972.0,0.00026908,2]
[354325637,1740412240473,-91177.06138345,0.00027,30]
[354325639,1740412240483,-155.03223432,0.00027,2]
[354325642,1740412240492,-150.0,0.00027,5]
[354325644,1740412240502,-97753.16378606,0.000271,60]
[354325646,1740412240511,-176.05625936,0.00027134,2]
[354325647,1740412240520,-855.89,0.00027149,30]
[354325649,1740412240529,-2848.0,0.000275,5]
[354325652,1740412240539,-179.53,0.0002754,2]
[354325689,1740412240729,-155.54,0.0002759,2]
[354325691,1740412240740,-718.12,0.000276,14]
[354325693,1740412240751,-827.7708,0.0002772,2]
[354325695,1740412240761,-391.0,0.0002783,15]
[354325697,1740412240774,-1260.94891877,0.000279,2]
[354325699,1740412240789,-1361.05108123,0.000279,2]
[354325701,1740412240800,-796.27,0.00028032,2]
[354325702,1740412240810,-207.45,0.00028215,120]
[354325704,1740412240819,-116.60175581,0.0002849,2]
[354325716,1740412240932,-62.92824419,0.0002849,2]
[354325718,1740412240942,-4486.57059395,0.00028569,2]
[354325720,1740412240951,-195.14,0.00029012,2]
[354325722,1740412240961,-221.71,0.00029012,2]
[354325724,1740412240970,-855.89,0.00029733,30]
[354325726,1740412240979,-999.0,0.00029999,2]
[354325728,1740412240988,-25686.50472575,0.0003,30]
[354325730,1740412241000,-275.1814637,0.0003,30]
[354325732,1740412241011,-13336.42233272,0.0003,30]
[354325735,1740412241022,-13565.0,0.0003,30]
[354325737,1740412241034,-20613.11336725,0.0003,30]
[354325739,1740412241045,-21537.52607062,0.0003,30]
[354325741,1740412241056,-4986.25203996,0.0003,30]
[354325743,1740412241066,-4000.0,0.00030091,2]
[354325745,1740412241076,-37029.2792411,0.00030187,3]
[354325748,1740412241098,-1217.63557993,0.00030187,3]
[354325751,1740412241110,-1692.54686506,0.00030187,3]
[354325753,1740412241122,-468.54598073,0.00030187,3]
[354325755,1740412241135,-949.82050932,0.00030187,3]
[354325757,1740412241146,-2771.36782684,0.00030187,3]
[354325759,1740412241156,-827.77081,0.0003022,2]
[354325761,1740412241166,-796.27,0.00030296,2]
[354325763,1740412241176,-548.0,0.00030613,30]
[354325765,1740412241186,-2622.75515617,0.000307,2]
[354325767,1740412241195,-4486.57059395,0.00030815,2]
[354325769,1740412241205,-171.87788393,0.00030936,2]
[354325772,1740412241215,-1000.0,0.00030943,2]
[354325774,1740412241225,-153.92179303,0.0003099,2]
[354325776,1740412241235,-662.73735515,0.00031,32]
[354325778,1740412241247,-265.29420285,0.00031,32]
[354325780,1740412241259,-6061.52160548,0.00031,32]
[354325783,1740412241282,-282.55999991,0.00031,32]
[354325814,1740412241662,-49747.01326902,0.00031,32]
[354325820,1740412241752,-306.35605012,0.00031,32]
[354325821,1740412241763,-285.95460437,0.00031,32]
[354325822,1740412241775,-42388.5629131,0.00031,32]
[354325823,1740412241784,-207.45,0.00031036,120]
[354325824,1740412241793,-4627.3688869,0.0003143,4]
[354325825,1740412241827,-8703.03113268,0.0003143,4]
[354325826,1740412241840,-399.68343004,0.0003143,4]
[354325827,1740412241851,-251.55635289,0.0003143,4]
[354325828,1740412241863,-3775.25266684,0.0003143,4]
[354325829,1740412241878,-939.51892574,0.0003143,4]
[354325830,1740412241887,-1000.0,0.000316,2]
[354325831,1740412241896,-37062.52027,0.00031781,7]
[354325832,1740412241906,-11667.67219817,0.00031781,7]
[354325865,1740412243795,-641.04203159,0.00020067,2]
[354325866,1740412243804,-150.0,0.00030187,7]
[354325867,1740412243814,-22725.2079684,0.00031781,7]
[354325868,1740412243912,-3663.02298743,0.00031781,7]
[354325869,1740412244062,-168.119358,0.00017454,2]
[354325870,1740412244073,-205.919642,0.00031781,7]
[354325909,1740412246381,-362.85,0.00018092,2]
[354325910,1740412246733,-55.1674886,0.00018092,2]
[354325911,1740412246743,-168.119358,0.00018327,2]
[354325912,1740412246753,-11621.88215174,0.00031781,7]
[354325913,1740412246766,-758.0,0.00031781,7]
[354325914,1740412246909,-510.66493326,0.00031781,7]
[354325920,1740412326177,200.0,0.00022,30]
[354325925,1740412807972,300.0,0.00022,30]
[354325926,1740412948494,641.91,0.00021999,30]
[354325932,1740413361796,-1368.22,0.00022301,120]
[354325933,1740413361824,-1365.97706,0.00022888,30]
[354325934,1740413361852,-1365.97706,0.00023088,30]
[354325935,1740413361879,-1365.97706,0.00023288,30]
[354325936,1740413361907,-1365.97706,0.00023488,30]
[354325937,1740413361934,-1365.97706,0.00023688,30]
[354325938,1740413361962,-1365.97706,0.00023888,30]
[354325939,1740413361989,-1365.97706,0.00024088,30]
[354325940,1740413362018,-1365.97706,0.00024288,30]
[354325941,1740413362046,-1365.97706,0.00024488,30]
[354325942,1740413362076,-641.91,0.00024583,30]
[354325943,1740413362105,-1365.97706,0.00024688,30]
[354325944,1740413362134,-1365.97706,0.00024888,30]
[354325945,1740413362163,-1365.97706,0.00025088,30]
[354325946,1740413362195,-1365.97706,0.00025288,30]
[354325947,1740413362235,-1365.97706,0.00025488,30]
[354325948,1740413362264,-1365.97706,0.00025688,30]
[354325949,1740413362292,-1365.97706,0.00026088,30]
[354325950,1740413362321,-1365.97706,0.00026288,30]
[354325951,1740413362352,-547.11,0.00026445,120]
[354325952,1740413362393,-1365.97706,0.00026488,30]
[354325953,1740413362444,-1365.97706,0.00026688,30]
[354325954,1740413362492,-1365.97706,0.00026888,30]
[354325955,1740413362538,-1365.97706,0.00027088,30]
[354325956,1740413362593,-641.91,0.00027167,30]
[354325957,1740413362643,-5502.62,0.0002719,120]
[354325958,1740413362688,-1365.97706,0.00027288,30]
[354325970,1740413373831,-201.9870344,0.00020668,120]
[354325984,1740413431435,-550.0,0.00013,2]
[354325986,1740413431446,-500.0,0.0001365,2]
[354325988,1740413431455,-388.50311115,0.000142,2]
[354325989,1740413431465,-500.0,0.000143,2]
[354325990,1740413431475,-500.0,0.000143,2]
[354325991,1740413431484,-388.50311114,0.000149,2]
[354325992,1740413431494,-1883.0,0.00015,3]
[354325993,1740413431503,-2000.0,0.00015068,2]
[354325994,1740413431513,-2000.0,0.00015822,2]
[354325995,1740413431522,-150.0,0.000165,2]
[354325996,1740413431532,-2000.0,0.00016575,2]
[354325997,1740413431541,-151.77522,0.00016688,7]
[354325998,1740413431551,-151.77522,0.00016888,7]
[354325999,1740413431560,-151.77522,0.00017088,7]
[354326000,1740413431569,-255.4928912,0.000172,2]
[354326001,1740413431579,-118.71284111,0.00017288,7]
[354326002,1740413431591,-33.06237889,0.00017288,7]
[354326003,1740413431600,-171.59,0.000173,2]
[354326004,1740413431609,-2000.0,0.00017329,2]
[354326005,1740413431619,-151.77522,0.00017488,7]
[354326006,1740413431629,-984.3,0.00017658,2]
[354326007,1740413431638,-151.77522,0.00017688,7]
[354326008,1740413431651,-150.0,0.00017699,2]
[354326009,1740413431660,-1018.76,0.000177,2]
[354326010,1740413431670,-1015.01,0.000177,2]
[354326011,1740413431680,-992.83,0.000177,2]
[354326012,1740413431690,-1000.63,0.000177,2]
[354326013,1740413431699,-1017.78,0.000177,2]
[354326014,1740413431709,-1014.37,0.000177,2]
[354326015,1740413431718,-276.35041928,0.000177,2]
[354326016,1740413431810,-729.89958072,0.000177,2]
[354326017,1740413431820,-2911.7662,0.000178,2]
[354326018,1740413431829,-2960.76632198,0.000178,2]
[354326019,1740413431840,-4766.47027802,0.000178,2]
[354326020,1740413431850,-500.0,0.000178,2]
[354326021,1740413431859,-834.05213914,0.000178,2]
[354326022,1740413431884,-329.98237027,0.000178,2]
[354326023,1740413431904,-939.51007535,0.000178,2]
[354326024,1740413431916,-1103.55713475,0.000178,2]
[354326026,1740413431931,-1000.398,0.000178,2]
[354326033,1740413432022,-113.22728049,0.000178,2]
[354326035,1740413432032,-174.292674,0.000178,2]
[354326335,1740413437641,-2.272326,0.000178,2]
[354326336,1740413437654,-151.77522,0.00017888,7]
[354326338,1740413437663,-677.80139654,0.00018082,2]
[354326340,1740413437675,-1340.99883149,0.00018082,2]
[354326342,1740413437684,-151.77522,0.00018088,7]
[354326344,1740413437695,-151.77522,0.00018288,7]
[354326346,1740413437705,-151.77522,0.00018488,7]
[354326348,1740413437715,-618.25013031,0.000185,2]
[354326351,1740413437726,-171.04,0.000186,2]
[354326353,1740413437735,-151.77522,0.00018688,7]
[354326355,1740413437745,-152.6430189,0.00018829,2]
[354326357,1740413437754,-151.77522,0.00018888,7]
[354326358,1740413437763,-500.0,0.00019084,2]
[354326360,1740413437773,-151.77522,0.00019088,7]
[354326362,1740413437787,-1000.0,0.00019178,7]
[354326364,1740413437796,-36.0069993,0.00019288,7]
[354326367,1740413437815,-115.7682207,0.00019288,7]
[354326369,1740413437825,-299.99,0.00019339,7]
[354326371,1740413437834,-4199.20573567,0.00019339,2]
[354326373,1740413437845,-1936.04426433,0.00019339,2]
[354326375,1740413437854,-1000.0,0.00019452,7]
[354326377,1740413437863,-151.77522,0.00019488,7]
[354326379,1740413437873,-1000.0,0.00019632,2]
[354326381,1740413437883,-151.77522,0.00019888,7]
[354326383,1740413437892,-151.77522,0.00020088,7]
[354326385,1740413437901,-151.77522,0.00020288,7]
[354326387,1740413437910,-167.02,0.00020343,2]
[354326389,1740413437920,-500.0,0.00020483,2]
[354326390,1740413437930,-151.77522,0.00020488,7]
[354326391,1740413437939,-500.0,0.00020606,2]
[354326392,1740413437948,-1290.17150502,0.00020634,2]
[354326393,1740413437957,-151.77522,0.00020688,7]
[354326394,1740413437966,-289.67,0.00020865,2]
[354326395,1740413437975,-151.77522,0.00020888,7]
[354326396,1740413437984,-204.03425436,0.000209,2]
[354326397,1740413437993,-151.77522,0.00021088,7]
[354326398,1740413438002,-153.9,0.00021135,2]
[354326399,1740413438011,-151.77522,0.00021288,7]
[354326400,1740413438021,-250.0,0.00021486,2]
[354326401,1740413438030,-151.77522,0.00021488,7]
[354326402,1740413438039,-151.77522,0.00021688,7]
[354326403,1740413438048,-814.57798976,0.00021779,2]
[354326404,1740413438060,-635.24201024,0.00021779,2]
[354326405,1740413438069,-151.77522,0.00021888,7]
[354326406,1740413438078,-1000.0,0.00021999,2]
[354326407,1740413438088,-189.59,0.00022048,2]
[354326408,1740413438097,-151.77522,0.00022088,7]
[354326409,1740413438106,-200.0,0.00022124,2]
[354326410,1740413438116,-514.79,0.000222,7]
[354326411,1740413438125,-151.77522,0.00022288,7]
[354326412,1740413438135,-2000.0,0.00022318,2]
[354326413,1740413438145,-151.77522,0.00022488,7]
[354326414,1740413438154,-151.77522,0.00022688,7]
[354326415,1740413438163,-153.9,0.00022879,2]
[354326416,1740413438172,-500.1,0.00022959,7]
[354326417,1740413438182,-200.0,0.00023,2]
[354326418,1740413438190,-344.49,0.00023836,2]
[354326419,1740413438199,-1000.0,0.00024087,2]
[354326420,1740413438208,-501.35004476,0.00024087,2]
[354326421,1740413438220,-498.64995524,0.00024087,2]
[354326422,1740413438230,-2893.28457817,0.000241,5]
[354326423,1740413438248,-2656.71542183,0.000241,5]
[354326424,1740413438258,-2315.031,0.0002461,2]
[354326425,1740413438267,-3883.9352,0.0002461,2]
[354326426,1740413438276,-153.9,0.00024623,2]
[354326427,1740413438286,-1000.0,0.00024658,2]
[354326428,1740413438295,-1000.0,0.00025,9]
[354326429,1740413438304,-1000.0,0.00025,9]
[354326430,1740413438313,-1000.0,0.00025,9]
[354326431,1740413438322,-1000.0,0.00025,9]
[354326432,1740413438332,-1000.0,0.00025,9]
[354326433,1740413438341,-1000.0,0.00025,9]
[354326434,1740413438350,-1000.0,0.00025,9]
[354326435,1740413438360,-1000.0,0.00025,9]
[354326436,1740413438369,-1000.0,0.00025,9]
[354326437,1740413438381,-868.4582257,0.00025,9]
[354326438,1740413438400,-131.5417743,0.00025,9]
[354326439,1740413438410,-747.41,0.00025052,2]
[354326440,1740413438419,-216.901,0.00025082,2]
[354326441,1740413438429,-253.427,0.00025082,2]
[354326442,1740413438438,-190.4140401,0.00025199,7]
[354326443,1740413438447,-150.0,0.00025299,2]
[354326444,1740413438456,-280.0,0.000253,10]
[354326445,1740413438466,-1602.313,0.000255,2]
[354326446,1740413438475,-500.51949667,0.0002625,2]
[354326447,1740413438484,-23651.17,0.00026287,2]
[354326448,1740413438493,-1109.64738211,0.00026742,2]
[354326449,1740413438503,-1000.0,0.00027216,2]
[354326450,1740413438512,-559.536,0.0002727,2]
[354326451,1740413438521,-747.41,0.00027316,2]
[354326452,1740413438530,-300.0,0.0002737,2]
[354326453,1740413438539,-4000.0,0.00027397,2]
[354326454,1740413438549,-23900.0,0.00027425,2]
[354326455,1740413438558,-357.09557676,0.00027425,30]
[354326456,1740413438568,-1365.97706,0.00027488,30]
[354326457,1740413438577,-1365.97706,0.00027688,30]
[354326458,1740413438586,-391.0,0.0002783,15]
[354326459,1740413438595,-150.0,0.00027876,5]
[354326460,1740413438605,-1365.97706,0.00027888,30]
[354326461,1740413438614,-150.0,0.00028082,2]
[354326462,1740413438624,-1365.97706,0.00028088,30]
[354326463,1740413438634,-394.13042296,0.000281,14]
[354326465,1740413442672,-34.85957704,0.000281,14]
[354326466,1740413442681,-1365.97706,0.00028288,30]
[354326467,1740413442692,-1365.97706,0.00028488,30]
[354326468,1740413442702,-1365.97706,0.00028688,30]
[354326469,1740413442712,-1365.97706,0.00028888,30]
[354326470,1740413442721,-1213.0,0.000292,2]
[354326471,1740413442735,-2500.0,0.00029262,2]
[354326472,1740413442745,-4066.72,0.00029362,2]
[354326473,1740413442754,-747.41,0.0002958,2]
[354326475,1740413442763,-500.0,0.00029723,120]
[354326476,1740413442772,-2000.0,0.00029723,120]
[354326478,1740413442781,-500.0,0.00029723,120]
[354326480,1740413442791,-200.0,0.00029723,120]
[354326481,1740413442800,-200.0,0.00029732,2]
[354326483,1740413442809,-641.91,0.00029751,30]
[354326484,1740413442818,-547.11,0.00029751,120]
[354326486,1740413442828,-265.98297397,0.00029817,2]
[354326489,1740413442850,-1148.05126673,0.00029817,2]
[354326491,1740413442860,-242.0,0.0002999,2]
[354326492,1740413442869,-3341.75435519,0.0003,30]
[354326493,1740413442881,-945.755,0.0003,30]
[354326521,1740413443089,-1320.1392282,0.0003,30]
[354326523,1740413443100,-1328.81286374,0.0003,30]
[354326528,1740413443128,-93063.53855287,0.0003,30]
[354326530,1740413443138,-200.0,0.0003,30]
[354326532,1740413443147,-1000.0,0.000303,2]
[354326534,1740413443156,-167.02,0.00030514,2]
[354326536,1740413443165,-548.0,0.00030613,30]
[354326538,1740413443174,-1000.0,0.00030618,2]
[354326540,1740413443183,-36060.66202976,0.00031,32]
[354326713,1740413445425,-7083.40745993,0.00031,32]
[354326726,1740413445532,-1969.9071581,0.00031,32]
[354326928,1740413537437,180.0,0.0002,120]
[354326929,1740413581104,151.0,0.0002,120]
[354326930,1740413581805,151.0,0.00021041,120]
[354326931,1740413708922,230.38,0.00020305,120]
[354326932,1740414037475,150.0,0.00022,120]
[354326933,1740414169631,156.11,8.767e-05,2]
[354326936,1740414373721,371.86141588,0.0002,120]
[354326939,1740414468228,610.60011111,0.0002,120]
[354326940,1740414484371,706.91834895,0.0002063,120]
[354326941,1740414525324,365.77525998,0.0002,120]
[354326963,1740414631593,-650.9047541,9.85e-05,2]
[354326964,1740414631647,-347.1409119,9.85e-05,2]
[354326965,1740414631657,-700.0,9.9e-05,3]
[354326966,1740414631667,-689.77997696,9.99e-05,2]
[354326967,1740414631678,-1997.21734795,9.99e-05,2]
[354326968,1740414631704,-1339.61912107,9.99e-05,2]
[354326969,1740414631715,-474.25161,9.99e-05,2]
[354326970,1740414631759,-1029.29698763,9.99e-05,2]
[354326971,1740414631770,-10851.96597556,9.99e-05,2]
[354326972,1740414631815,-537.44719657,9.99e-05,2]
[354326973,1740414631826,-274.7353825,9.99e-05,2]
[354326974,1740414631837,-458.02100012,9.99e-05,2]
[354326975,1740414631848,-691.49400045,9.99e-05,2]
[354326976,1740414631860,-384.4865941,9.99e-05,2]
[354326977,1740414631871,-293.998,9.99e-05,2]
[354326978,1740414631884,-308.0963464,9.99e-05,2]
[354326979,1740414631895,-292.13799996,9.99e-05,2]
[354326980,1740414631907,-1345.28952857,9.99e-05,2]
[354326981,1740414631916,-665.71276693,9.999e-05,2]
[354326982,1740414631927,-150.0,9.999e-05,2]
[354326983,1740414631936,-3391.9977045,0.0001,2]
[354326984,1740414631951,-685.94121419,0.0001,2]
[354326985,1740414631963,-1559.46701469,0.0001,2]
[354326986,1740414631985,-754.69933618,0.0001,2]
[354326987,1740414631996,-12139.56648172,0.0001,2]
[354326988,1740414632037,-712.02367317,0.0001,2]
[354327142,1740414637536,-184187.01105686,0.0001,2]
[354327143,1740414637547,-3883.155,0.0001,2]
[354327144,1740414637558,-4676.235,0.0001,2]
[354327145,1740414637569,-412.68856252,0.0001,2]
[354327146,1740414637591,-97804.34890007,0.0001,2]
[354327147,1740414637753,-932.58255358,0.0001,2]
[354327148,1740414637807,-70464.44707555,0.0001,2]
[354327184,1740414639656,-28461.790026,0.0001,2]
[354327197,1740414639764,-535.03817279,0.0001,2]
[354327199,1740414639775,-519443.42850501,0.0001,2]
[354327220,1740414640031,-3185.0,0.0001,2]
[354327227,1740414640086,-461.53624925,0.0001,2]
[354327229,1740414640098,-329.0207687,0.0001,2]
[354327262,1740414640280,-426.73155788,0.0001,2]
[354327265,1740414640310,-800.78499999,0.0001,2]
[354327268,1740414640321,-670.06686445,0.0001,2]
[354327281,1740414642725,-464.504,0.0001,2]
[354327282,1740414642782,-50130.70468253,0.0001,2]
[354327283,1740414642794,-22962.09038652,0.0001,2]
[354327284,1740414642838,-307.28786812,0.0001,2]
[354327285,1740414642896,-294.14994472,0.0001,2]
[354327286,1740414642907,-1806.49803386,0.0001,2]
[354327301,1740414645550,-164418.75328464,0.0001,2]
[354327303,1740414645562,-70442.08611544,0.0001,2]
[354327304,1740414645573,-360.08234564,0.0001,2]
[354327305,1740414645584,-559.18729511,0.0001,2]
[354327306,1740414645660,-264.208,0.0001,2]
[354327307,1740414645719,-420.4240141,0.0001,2]
[354327308,1740414645730,-376.87925389,0.0001,2]
[354327309,1740414645742,-601.84902317,0.0001,2]
[354327310,1740414645753,-278.45796928,0.0001,2]
[354327311,1740414645764,-1265.48966386,0.0001,2]
[354327312,1740414645775,-3448.28676,0.0001,2]
[354327313,1740414645794,-497.75206322,0.0001,2]
[354327314,1740414645805,-8879.6773207,0.0001,2]
[354327315,1740414645833,-4769.32237803,0.0001,2]
[354327316,1740414645846,-1357.42612697,0.0001,2]
[354327317,1740414645887,-1006.23121975,0.0001,2]
[354327319,1740414720411,301.60685095,0.00022,30]
[354327320,1740415136084,497.0,0.00022,120]
[354327321,1740415257728,1000.0,0.00022,30]
[354327322,1740415336799,177.36,8.767e-05,2]
[354327324,1740415447656,577.73,0.00019397,30]
[354327325,1740415448231,577.73,0.00021981,30]
[354327326,1740415692476,151.0,0.00022,120]
[354327334,1740415831813,-334.50747262,9.7e-05,3]
[354327335,1740415831824,-305.98,9.7e-05,3]
[354327336,1740415831869,-59.51252738,9.7e-05,3]
[354327337,1740415831878,-548.23747262,9.8e-05,2]
[354327338,1740415831922,-788.58254264,9.8e-05,2]
[354327339,1740415831979,-3574.51798474,9.8e-05,2]
[354327340,1740415831988,-210.177,9.8e-05,2]
[354327341,1740415831998,-1500.0,9.8e-05,3]
[354327342,1740415832007,-2200.0,9.9e-05,3]
[354327343,1740415832016,-150.0,9.973e-05,2]
[354327344,1740415832026,-602.77,9.999e-05,2]
[354327345,1740415832036,-150.0,9.999e-05,2]
[354327346,1740415832045,-48726.95273049,0.0001,2]
[354327347,1740415832072,-1238.0,0.0001,2]
[354327348,1740415832083,-19579.9823986,0.0001,2]
[354327349,1740415832098,-34148.14107524,0.0001,2]
[354327350,1740415832110,-478.31588386,0.0001,2]
[354327351,1740415832121,-112820.32329129,0.0001,2]
[354327352,1740415832133,-32278.50160747,0.0001,2]
[354327353,1740415832144,-724.0,0.0001,2]
[354327459,1740415837716,-11867.53221894,0.0001,2]
[354327460,1740415837767,-1196.73651874,0.0001,2]
[354327461,1740415837822,-403.3,0.0001,2]
[354327505,1740415840366,-30116.47380001,0.0001,2]
[354327506,1740415840432,-782.9233938,0.0001,2]
[354327507,1740415840521,-12697.27476427,0.0001,2]
[354327508,1740415840530,-6286.97573774,0.0001,2]
[354327509,1740415840541,-285.81595013,0.0001,2]
[354327510,1740415840637,-7238.12511026,0.0001,2]
[354327511,1740415840647,-1726.29796512,0.0001,2]
[354327512,1740415840686,-1388.83144935,0.0001,2]
[354327518,1740415843001,-1000.24312,0.0001,2]
[354327526,1740415845987,-256.82202032,0.0001,2]
[354327527,1740415846041,-2277.93308936,0.0001,2]
[354327528,1740415846095,-33551.86576248,0.0001,2]
[354327529,1740415996832,795.46,9.088e-05,2]
[354327530,1740416371372,11323.59,0.00022,30]
[354327531,1740416376533,10000.0,0.00022,120]
[354327533,1740416491722,15000.0,0.00022,30]
[354327534,1740416657861,180.0,0.0002,120]
[354327535,1740416696109,151.0,0.0002,120]
[354327537,1740417031936,-6616.111632,9.677e-05,2]
[354327538,1740417031946,-150.0,9.702e-05,2]
[354327539,1740417031955,-500.0,9.726e-05,2]
[354327540,1740417031965,-150.0,9.751e-05,2]
[354327541,1740417031975,-500.0,9.751e-05,2]
[354327542,1740417031984,-500.0,9.751e-05,2]
[354327543,1740417031994,-300.0,9.799e-05,2]
[354327544,1740417032003,-4446.318,9.8e-05,2]
[354327545,1740417032012,-205.204,9.8e-05,2]
[354327546,1740417032021,-500.0,9.8e-05,3]
[354327547,1740417032030,-1000.0,9.9e-05,3]
[354327548,1740417032040,-500.0,9.973e-05,2]
[354327549,1740417032049,-577.65,9.999e-05,2]
[354327550,1740417032059,-150.0,9.999e-05,2]
[354327551,1740417032068,-22300.3891886,0.0001,2]
[354327552,1740417032083,-1395.09553501,0.0001,2]
[354327553,1740417032149,-540.0,0.0001,2]
[354327554,1740417032161,-535.47,0.0001,2]
[354327555,1740417032203,-524.9905175,0.0001,2]
[354327556,1740417032258,-1885.6802487,0.0001,2]
[354327557,1740417032269,-2257.03968916,0.0001,2]
[354327558,1740417032280,-3861.16061818,0.0001,2]
[354327559,1740417032291,-1204.75909849,0.0001,2]
[354327560,1740417032313,-295.49189213,0.0001,2]
[354327561,1740417032324,-4844.38900129,0.0001,2]
[354327562,1740417032335,-5727.18145211,0.0001,2]
[354327563,1740417032346,-19554.6,0.0001,2]
[354327564,1740417032357,-3071.48316617,0.0001,2]
[354327565,1740417032368,-1097.72946846,0.0001,2]
[354327569,1740417032452,-165347.73434487,0.0001,2]
[354327572,1740417032464,-167924.24394278,0.0001,2]
[354327574,1740417032476,-2638.46326008,0.0001,2]
[354327575,1740417037918,-1990.14,0.0001,2]
[354327576,1740417038051,-128790.938389,0.0001,2]
[354327577,1740417038062,-4844.01136723,0.0001,2]
[354327578,1740417038106,-603.465158,0.0001,2]
[354327579,1740417038117,-811.5199704,0.0001,2]
[354327580,1740417038128,-12945.25124714,0.0001,2]
[354327581,1740417038160,-2254.88152453,0.0001,2]
[354327628,1740417040161,-417.09,0.0001,2]
[354327629,1740417040232,-1080.06598653,0.0001,2]
[354327630,1740417040307,-424.36076719,0.0001,2]
[354327631,1740417040318,-537.73826027,0.0001,2]
[354327632,1740417040329,-473.47909091,0.0001,2]
[354327633,1740417040362,-572.01931225,0.0001,2]
[354327655,1740417043706,-1943.25529658,0.0001,2]
[354327656,1740417046058,-700.96777797,0.0001,2]
[354327657,1740417050631,815.09,8.575e-05,2]
[354327658,1740417140281,1000.0,0.0002,120]
[354327659,1740417628030,151.0,0.0002,120]
[354327661,1740417781197,156.11,8.767e-05,2]
[354327663,1740417972183,371.86141588,0.0002,120]
[354327665,1740418064414,610.60011111,0.0002,120]
[354327669,1740418120751,365.77525998,0.0002,120]
[354327682,1740418232135,-400.0,9.7e-05,3]
[354327684,1740418232145,-176.47308612,9.8e-05,2]
[354327687,1740418232262,-1582.22003,9.8e-05,2]
[354327688,1740418232306,-1396.50221221,9.8e-05,2]
[354327689,1740418232359,-815.65667167,9.8e-05,2]
[354327690,1740418232369,-201.226,9.8e-05,2]
[354327691,1740418232378,-900.0,9.8e-05,3]
[354327692,1740418232388,-1232.5884,9.9e-05,2]
[354327693,1740418232397,-91.13180845,9.9e-05,2]
[354327694,1740418232415,-2000.04799155,9.9e-05,2]
[354327695,1740418232424,-1300.0,9.9e-05,3]
[354327696,1740418232434,-8955.15507287,9.9e-05,2]
[354327750,1740418238140,-46599.84492713,9.9e-05,2]
[354327751,1740418238150,-500.0,9.973e-05,2]
[354327752,1740418238159,-151.48003078,9.973e-05,2]
[354327753,1740418238169,-150.0,9.999e-05,2]
[354327754,1740418238178,-159.13910104,9.999e-05,2]
[354327755,1740418238187,-500.0,9.999e-05,2]
[354327756,1740418238197,-500.0,9.999e-05,2]
[354327757,1740418238209,-500.0,9.999e-05,2]
[354327758,1740418238222,-500.0,9.999e-05,2]